fUSD/lending_fUSD_20240708
["ID","MTS","AMOUNT","RATE_DAILY","PERIOD"]
[331520862,1720446701373,-656.98,0.0005178,120]
[331520863,1720446701482,-875.42,0.0005178,120]
[331520864,1720446701584,-500.0,0.0005178,120]
[331520865,1720446701694,-500.0,0.0005178,120]
[331520866,1720446701797,-500.0,0.0005178,120]
[331520867,1720446701897,-601.48,0.0005178,120]
[331520868,1720446702002,-927.61,0.0005178,120]
[331520869,1720446702106,-663.11,0.0005178,120]
[331520870,1720446702211,-500.0,0.0005178,120]
[331520871,1720446702313,-995.13,0.0005178,120]
[331520872,1720446702412,-500.0,0.0005178,120]
[331520873,1720446702512,-503.89,0.0005178,120]
[331520874,1720446702613,-500.0,0.0005178,120]
[331520875,1720446702712,-2052.66,0.0005178,120]
[331520876,1720446702812,-500.0,0.0005178,120]
[331520877,1720446702913,-500.0,0.0005178,120]
[331520878,1720446703014,-500.0,0.0005178,120]
[331520879,1720446703117,-500.0,0.0005178,120]
[331520880,1720446703225,-793.83,0.0005178,120]
[331520881,1720446703324,-500.0,0.0005178,120]
[331520882,1720446703444,-500.0,0.0005178,120]
[331520883,1720446703562,-680.97,0.0005178,120]
[331520884,1720446703678,-500.0,0.0005178,120]
[331520885,1720446703786,-500.0,0.0005178,120]
[331520886,1720446703888,-576.64,0.0005178,120]
[331520887,1720446703995,-500.0,0.0005178,120]
[331520888,1720446704097,-500.0,0.0005178,120]
[331520889,1720446704205,-1133.72,0.0005178,120]
[331520890,1720446704311,-500.0,0.0005178,120]
[331520891,1720446704418,-844.3,0.0005178,120]
[331520892,1720446704524,-500.0,0.0005178,120]
[331520893,1720446704635,-626.46,0.0005178,120]
[331520894,1720446704735,-500.0,0.0005178,120]
[331520895,1720446704834,-858.72,0.0005178,120]
[331520896,1720446704934,-606.39,0.0005178,120]
[331520897,1720446705041,-500.0,0.0005178,120]
[331520898,1720446705143,-500.0,0.0005178,120]
[331520899,1720446705248,-608.68,0.0005178,120]
[331520900,1720446705349,-586.51,0.0005178,120]
[331520901,1720446705448,-500.0,0.0005178,120]
[331520902,1720446705548,-500.0,0.0005178,120]
[331520903,1720446705649,-500.0,0.0005178,120]
[331520904,1720446705752,-500.0,0.0005178,120]
[331520905,1720446705860,-500.0,0.0005178,120]
[331520906,1720446705970,-698.26,0.0005178,120]
[331520907,1720446706083,-580.79,0.0005178,120]
[331520908,1720446706197,-1752.42,0.0005178,120]
[331520909,1720446706305,-500.0,0.0005178,120]
[331520910,1720446706410,-1395.37,0.0005178,120]
[331520911,1720446706509,-789.75,0.0005178,120]
[331520912,1720446706612,-500.0,0.0005178,120]
[331520913,1720446706713,-500.0,0.0005178,120]
[331520914,1720446706815,-276.66,0.0005178,120]
[331520915,1720446706918,-500.0,0.0005178,120]
[331520916,1720446707017,-618.35,0.0005178,120]
[331520917,1720446707119,-507.64310302,0.0005178,120]
[331520918,1720446707220,-506.52,0.0005178,120]
[331520919,1720446707321,-768.09,0.0005178,120]
[331520920,1720446707421,-610.82,0.0005178,120]
[331520921,1720446707521,-621.72,0.0005178,120]
[331520922,1720446707620,-500.0,0.0005178,120]
[331520923,1720446707719,-500.0,0.0005178,120]
[331520924,1720446707815,-1216.49,0.0005178,120]
[331520925,1720446707912,-3725.93,0.0005178,120]
[331520926,1720446708010,-935.49,0.0005178,120]
[331520927,1720446708104,-675.31,0.0005178,120]
[331520928,1720446708200,-2876.66,0.0005178,120]
[331520929,1720446708298,-586.12,0.0005178,120]
[331520930,1720446708408,-1521.41,0.0005178,120]
[331520931,1720446708523,-2000.0,0.00051781,30]
[331520932,1720446708765,-152.48368614,0.00051823,60]
[331520933,1720446708870,-155.2667115,0.00051903,60]
[331520934,1720446708977,-100000.0,0.00052,42]
[331520935,1720446709087,-100000.0,0.00052,52]
[331520936,1720446709197,-151.0,0.00052,120]
[331520937,1720446709304,-151.0,0.00052,120]
[331520938,1720446709416,-151.0,0.00052,120]
[331520939,1720446709531,-224.572911,0.00052,120]
[331520940,1720446709642,-224.572911,0.00052,120]
[331520941,1720446709752,-273.627046,0.00052,120]
[331520942,1720446709856,-156.19537253,0.0005201,60]
[331520943,1720446709958,-704.82,0.00052054,120]
[331520944,1720446710055,-1163.26,0.00052054,120]
[331520945,1720446710152,-500.0,0.00052054,120]
[331520946,1720446710251,-966.97,0.00052054,120]
[331520947,1720446710345,-500.0,0.00052054,120]
[331520948,1720446710448,-1435.54,0.00052054,120]
[331520949,1720446710545,-982.43,0.00052054,120]
[331520950,1720446710644,-500.0,0.00052054,120]
[331520951,1720446710741,-500.0,0.00052054,120]
[331520952,1720446710843,-500.0,0.00052054,120]
[331520953,1720446710946,-2601.42,0.00052054,120]
[331520954,1720446711047,-500.0,0.00052054,120]
[331520955,1720446711146,-500.0,0.00052054,120]
[331520956,1720446711248,-576.67,0.00052054,120]
[331520957,1720446711348,-656.98,0.00052054,120]
[331520958,1720446711450,-875.42,0.00052054,120]
[331520959,1720446711548,-505.007,0.00052054,120]
[331520960,1720446711646,-500.0,0.00052054,120]
[331520961,1720446711745,-542.06,0.00052054,120]
[331520962,1720446711851,-601.48,0.00052054,120]
[331520963,1720446711955,-927.61,0.00052054,120]
[331520964,1720446712054,-663.11,0.00052054,120]
[331520965,1720446712155,-500.0,0.00052054,120]
[331520966,1720446712258,-995.13,0.00052054,120]
[331520967,1720446712356,-500.0,0.00052054,120]
[331520968,1720446712453,-503.89,0.00052054,120]
[331520969,1720446712558,-500.0,0.00052054,120]
[331520970,1720446712660,-2052.66,0.00052054,120]
[331520971,1720446712762,-500.0,0.00052054,120]
[331520972,1720446712862,-500.0,0.00052054,120]
[331520973,1720446712959,-500.0,0.00052054,120]
[331520974,1720446713060,-500.0,0.00052054,120]
[331520975,1720446713162,-793.83,0.00052054,120]
[331520976,1720446713263,-500.0,0.00052054,120]
[331520977,1720446713370,-500.0,0.00052054,120]
[331520978,1720446713493,-680.97,0.00052054,120]
[331520979,1720446713617,-500.0,0.00052054,120]
[331520980,1720446713741,-500.0,0.00052054,120]
[331520981,1720446713849,-576.64,0.00052054,120]
[331520982,1720446713958,-500.0,0.00052054,120]
[331520983,1720446714071,-500.0,0.00052054,120]
[331520984,1720446714191,-500.0,0.00052054,120]
[331520985,1720446714310,-844.3,0.00052054,120]
[331520986,1720446714428,-500.0,0.00052054,120]
[331520987,1720446714548,-500.0,0.00052054,120]
[331520988,1720446714670,-626.46,0.00052054,120]
[331520989,1720446714780,-858.72,0.00052054,120]
[331520991,1720446714886,-606.39,0.00052054,120]
[331520992,1720446714991,-500.0,0.00052054,120]
[331520993,1720446715095,-500.0,0.00052054,120]
[331520994,1720446715203,-608.68,0.00052054,120]
[331520995,1720446715309,-586.51,0.00052054,120]
[331520996,1720446715418,-500.0,0.00052054,120]
[331520997,1720446715524,-500.0,0.00052054,120]
[331520998,1720446715631,-500.0,0.00052054,120]
[331520999,1720446715738,-500.0,0.00052054,120]
[331521000,1720446715844,-2035.02,0.00052054,120]
[331521001,1720446715952,-500.0,0.00052054,120]
[331521002,1720446716057,-698.26,0.00052054,120]
[331521003,1720446716162,-580.79,0.00052054,120]
[331521004,1720446716266,-1752.42,0.00052054,120]
[331521005,1720446716367,-500.0,0.00052054,120]
[331521006,1720446716469,-1395.37,0.00052054,120]
[331521007,1720446716573,-789.75,0.00052054,120]
[331521008,1720446716675,-500.0,0.00052054,120]
[331521009,1720446716782,-179.24,0.00052054,120]
[331521010,1720446716888,-531.54108065,0.00052054,120]
[331521011,1720446716994,-618.35,0.00052054,120]
[331521012,1720446717099,-506.52,0.00052054,120]
[331521013,1720446717206,-768.09,0.00052054,120]
[331521014,1720446717310,-610.82,0.00052054,120]
[331521015,1720446717420,-621.72,0.00052054,120]
[331521016,1720446717523,-500.0,0.00052054,120]
[331521017,1720446717630,-500.0,0.00052054,120]
[331521018,1720446717735,-1216.49,0.00052054,120]
[331521019,1720446717839,-3725.93,0.00052054,120]
[331521020,1720446717942,-935.49,0.00052054,120]
[331521021,1720446718046,-675.31,0.00052054,120]
[331521022,1720446718148,-2876.66,0.00052054,120]
[331521023,1720446718255,-586.12,0.00052054,120]
[331521024,1720446718355,-1521.41,0.00052054,120]
[331521025,1720446718468,-156.19537253,0.00052094,60]
[331521026,1720446718586,-154.68979614,0.000521,60]
[331521027,1720446718699,-704.82,0.00052328,120]
[331521028,1720446718805,-1163.26,0.00052328,120]
[331521029,1720446718912,-500.0,0.00052328,120]
[331521030,1720446719018,-966.97,0.00052328,120]
[331521031,1720446719127,-500.0,0.00052328,120]
[331521032,1720446719242,-1435.54,0.00052328,120]
[331521033,1720446719354,-982.43,0.00052328,120]
[331521034,1720446719468,-576.29881456,0.00052328,120]
[331521035,1720446719582,-515.24,0.00052328,120]
[331521036,1720446719687,-500.0,0.00052328,120]
[331521037,1720446719941,-2601.42,0.00052328,120]
[331521038,1720446720039,-500.0,0.00052328,120]
[331521039,1720446720140,-500.0,0.00052328,120]
[331521040,1720446720246,-576.67,0.00052328,120]
[331521041,1720446720348,-656.98,0.00052328,120]
[331521042,1720446720450,-875.42,0.00052328,120]
[331521043,1720446720555,-500.0,0.00052328,120]
[331521044,1720446720659,-601.48,0.00052328,120]
[331521045,1720446720760,-927.61,0.00052328,120]
[331521046,1720446720865,-663.11,0.00052328,120]
[331521047,1720446720971,-500.0,0.00052328,120]
[331521048,1720446721070,-995.13,0.00052328,120]
[331521049,1720446721173,-500.0,0.00052328,120]
[331521050,1720446721280,-503.89,0.00052328,120]
[331521051,1720446721381,-500.0,0.00052328,120]
[331521052,1720446721477,-2052.66,0.00052328,120]
[331521053,1720446721576,-507.95359617,0.00052328,120]
[331521054,1720446721684,-283.34,0.00052328,120]
[331521056,1720446721789,-500.0,0.00052328,120]
[331521057,1720446721897,-500.0,0.00052328,120]
[331521059,1720446722004,-793.83,0.00052328,120]
[331521060,1720446722110,-500.0,0.00052328,120]
[331521061,1720446722216,-500.0,0.00052328,120]
[331521062,1720446722320,-680.97,0.00052328,120]
[331521063,1720446722425,-361.6700193,0.00052328,120]
[331521064,1720446722530,-500.0,0.00052328,120]
[331521065,1720446722637,-576.64,0.00052328,120]
[331521066,1720446722740,-500.0,0.00052328,120]
[331521067,1720446722847,-500.0,0.00052328,120]
[331521068,1720446722959,-500.0,0.00052328,120]
[331521069,1720446723059,-844.3,0.00052328,120]
[331521070,1720446723165,-500.0,0.00052328,120]
[331521071,1720446723273,-500.0,0.00052328,120]
[331521072,1720446723396,-626.46,0.00052328,120]
[331521073,1720446723523,-858.72,0.00052328,120]
[331521074,1720446723644,-606.39,0.00052328,120]
[331521075,1720446723753,-500.0,0.00052328,120]
[331521076,1720446723856,-500.0,0.00052328,120]
[331521077,1720446723959,-608.68,0.00052328,120]
[331521078,1720446724060,-586.51,0.00052328,120]
[331521079,1720446724166,-500.0,0.00052328,120]
[331521080,1720446724275,-500.0,0.00052328,120]
[331521081,1720446724385,-500.0,0.00052328,120]
[331521082,1720446724498,-500.0,0.00052328,120]
[331521083,1720446724611,-500.0,0.00052328,120]
[331521084,1720446724717,-698.26,0.00052328,120]
[331521085,1720446724825,-580.79,0.00052328,120]
[331521086,1720446724934,-1752.42,0.00052328,120]
[331521087,1720446725046,-500.0,0.00052328,120]
[331521088,1720446725156,-1395.37,0.00052328,120]
[331521089,1720446725275,-789.75,0.00052328,120]
[331521090,1720446725392,-500.0,0.00052328,120]
[331521091,1720446725513,-618.35,0.00052328,120]
[331521092,1720446725635,-506.52,0.00052328,120]
[331521093,1720446725750,-768.09,0.00052328,120]
[331521094,1720446725862,-610.82,0.00052328,120]
[331521095,1720446725967,-621.72,0.00052328,120]
[331521096,1720446726075,-473.21612729,0.00052328,120]
[331521097,1720446726188,-269.18051885,0.00052328,120]
[331521098,1720446726296,-1216.49,0.00052328,120]
[331521099,1720446726403,-3725.93,0.00052328,120]
[331521100,1720446726509,-935.49,0.00052328,120]
[331521101,1720446726614,-675.31,0.00052328,120]
[331521102,1720446726716,-2876.66,0.00052328,120]
[331521103,1720446726816,-586.12,0.00052328,120]
[331521104,1720446726917,-1521.41,0.00052328,120]
[331521105,1720446727022,-156.19537253,0.00052355,60]
[331521106,1720446727120,-153.57262803,0.00052378,60]
[331521107,1720446727226,-166.66666666,0.00052517,60]
[331521108,1720446727336,-704.82,0.00052602,120]
[331521109,1720446727445,-1163.26,0.00052602,120]
[331521110,1720446727553,-500.0,0.00052602,120]
[331521111,1720446727656,-966.97,0.00052602,120]
[331521112,1720446727760,-500.0,0.00052602,120]
[331521113,1720446727865,-1435.54,0.00052602,120]
[331521114,1720446727970,-982.43,0.00052602,120]
[331521115,1720446728082,-174.48,0.00052602,120]
[331521116,1720446728188,-2601.42,0.00052602,120]
[331521117,1720446728291,-500.0,0.00052602,120]
[331521118,1720446728403,-500.0,0.00052602,120]
[331521119,1720446728521,-576.67,0.00052602,120]
[331521120,1720446728640,-656.98,0.00052602,120]
[331521121,1720446728757,-875.42,0.00052602,120]
[331521122,1720446728866,-560.08580628,0.00052602,120]
[331521123,1720446728975,-601.48,0.00052602,120]
[331521124,1720446729091,-927.61,0.00052602,120]
[331521125,1720446729212,-663.11,0.00052602,120]
[331521126,1720446729330,-500.0,0.00052602,120]
[331521127,1720446729449,-995.13,0.00052602,120]
[331521128,1720446729572,-500.0,0.00052602,120]
[331521129,1720446729691,-503.89,0.00052602,120]
[331521130,1720446729818,-530.36741975,0.00052602,120]
[331521131,1720446729932,-2052.66,0.00052602,120]
[331521132,1720446730048,-500.0,0.00052602,120]
[331521133,1720446730157,-500.0,0.00052602,120]
[331521134,1720446730261,-793.83,0.00052602,120]
[331521135,1720446730368,-500.0,0.00052602,120]
[331521136,1720446730474,-680.97,0.00052602,120]
[331521137,1720446730576,-151.0,0.00052602,120]
[331521138,1720446730682,-500.0,0.00052602,120]
[331521139,1720446730789,-576.64,0.00052602,120]
[331521140,1720446730891,-500.0,0.00052602,120]
[331521141,1720446730996,-500.0,0.00052602,120]
[331521142,1720446731098,-500.0,0.00052602,120]
[331521143,1720446731355,-844.3,0.00052602,120]
[331521144,1720446731455,-151.0,0.00052602,120]
[331521145,1720446731561,-500.0,0.00052602,120]
[331521146,1720446731658,-500.0,0.00052602,120]
[331521147,1720446731757,-626.46,0.00052602,120]
[331521148,1720446731858,-858.72,0.00052602,120]
[331521149,1720446731960,-606.39,0.00052602,120]
[331521150,1720446732062,-500.0,0.00052602,120]
[331521151,1720446732160,-500.0,0.00052602,120]
[331521152,1720446732259,-608.68,0.00052602,120]
[331521153,1720446732357,-586.51,0.00052602,120]
[331521154,1720446732454,-500.0,0.00052602,120]
[331521155,1720446732559,-500.0,0.00052602,120]
[331521156,1720446732661,-500.0,0.00052602,120]
[331521157,1720446732756,-500.0,0.00052602,120]
[331521158,1720446732851,-500.0,0.00052602,120]
[331521159,1720446732951,-698.26,0.00052602,120]
[331521160,1720446733052,-580.79,0.00052602,120]
[331521161,1720446733153,-1752.42,0.00052602,120]
[331521162,1720446733252,-500.0,0.00052602,120]
[331521163,1720446733350,-1395.37,0.00052602,120]
[331521164,1720446733469,-789.75,0.00052602,120]
[331521165,1720446733584,-500.0,0.00052602,120]
[331521166,1720446733697,-618.35,0.00052602,120]
[331521167,1720446733805,-506.52,0.00052602,120]
[331521168,1720446733908,-768.09,0.00052602,120]
[331521169,1720446734010,-610.82,0.00052602,120]
[331521170,1720446734112,-621.72,0.00052602,120]
[331521171,1720446734230,-1216.49,0.00052602,120]
[331521172,1720446734346,-3725.93,0.00052602,120]
[331521173,1720446734469,-935.49,0.00052602,120]
[331521174,1720446734584,-675.31,0.00052602,120]
[331521175,1720446734694,-2876.66,0.00052602,120]
[331521176,1720446734814,-586.12,0.00052602,120]
[331521177,1720446734931,-1521.41,0.00052602,120]
[331521178,1720446735040,-156.38550522,0.00052746,60]
[331521179,1720446735142,-704.82,0.00052876,120]
[331521180,1720446735244,-1163.26,0.00052876,120]
[331521181,1720446735344,-500.0,0.00052876,120]
[331521182,1720446735444,-966.97,0.00052876,120]
[331521183,1720446735546,-500.0,0.00052876,120]
[331521184,1720446735649,-1435.54,0.00052876,120]
[331521185,1720446735749,-982.43,0.00052876,120]
[331521186,1720446735850,-2601.42,0.00052876,120]
[331521187,1720446735954,-552.54,0.00052876,120]
[331521188,1720446736061,-500.0,0.00052876,120]
[331521189,1720446736160,-576.67,0.00052876,120]
[331521190,1720446736263,-656.98,0.00052876,120]
[331521191,1720446736363,-875.42,0.00052876,120]
[331521192,1720446736466,-601.48,0.00052876,120]
[331521193,1720446736564,-927.61,0.00052876,120]
[331521194,1720446736662,-663.11,0.00052876,120]
[331521195,1720446736764,-500.0,0.00052876,120]
[331521196,1720446736862,-995.13,0.00052876,120]
[331521197,1720446736960,-500.0,0.00052876,120]
[331521198,1720446737059,-503.89,0.00052876,120]
[331521199,1720446737161,-2052.66,0.00052876,120]
[331521200,1720446737263,-500.0,0.00052876,120]
[331521201,1720446737362,-500.0,0.00052876,120]
[331521202,1720446737466,-793.83,0.00052876,120]
[331521203,1720446737569,-500.0,0.00052876,120]
[331521204,1720446737675,-680.97,0.00052876,120]
[331521205,1720446737774,-576.64,0.00052876,120]
[331521206,1720446737872,-500.0,0.00052876,120]
[331521207,1720446737977,-500.0,0.00052876,120]
[331521208,1720446738081,-1133.72,0.00052876,120]
[331521209,1720446738188,-500.0,0.00052876,120]
[331521210,1720446738290,-844.3,0.00052876,120]
[331521211,1720446738397,-316.00774171,0.00052876,120]
[331521212,1720446738511,-500.0,0.00052876,120]
[331521213,1720446738624,-626.46,0.00052876,120]
[331521214,1720446738733,-858.72,0.00052876,120]
[331521215,1720446738835,-606.39,0.00052876,120]
[331521216,1720446738942,-500.0,0.00052876,120]
[331521217,1720446739047,-500.0,0.00052876,120]
[331521218,1720446739154,-608.68,0.00052876,120]
[331521219,1720446739264,-586.51,0.00052876,120]
[331521220,1720446739375,-500.0,0.00052876,120]
[331521221,1720446739489,-500.0,0.00052876,120]
[331521222,1720446739610,-500.0,0.00052876,120]
[331521223,1720446739727,-500.0,0.00052876,120]
[331521224,1720446739833,-500.0,0.00052876,120]
[331521225,1720446739944,-698.26,0.00052876,120]
[331521226,1720446740054,-580.79,0.00052876,120]
[331521227,1720446740157,-1752.42,0.00052876,120]
[331521228,1720446740263,-500.0,0.00052876,120]
[331521229,1720446740364,-1395.37,0.00052876,120]
[331521230,1720446740464,-789.75,0.00052876,120]
[331521231,1720446740568,-190.28,0.00052876,120]
[331521232,1720446740669,-618.35,0.00052876,120]
[331521233,1720446740769,-506.52,0.00052876,120]
[331521234,1720446740866,-768.09,0.00052876,120]
[331521235,1720446740972,-610.82,0.00052876,120]
[331521236,1720446741075,-621.72,0.00052876,120]
[331521237,1720446741178,-1216.49,0.00052876,120]
[331521238,1720446741279,-3725.93,0.00052876,120]
[331521239,1720446741378,-935.49,0.00052876,120]
[331521240,1720446741473,-675.31,0.00052876,120]
[331521241,1720446741570,-2876.66,0.00052876,120]
[331521242,1720446741666,-586.12,0.00052876,120]
[331521243,1720446741763,-1521.41,0.00052876,120]
[331521244,1720446741877,-100000.0,0.00053,53]
[331521245,1720446741985,-100000.0,0.00053,53]
[331521246,1720446742091,-1000.0,0.00053,30]
[331521247,1720446742198,-1000.0,0.00053,30]
[331521248,1720446742438,-1000.0,0.00053,30]
[331521249,1720446742547,-152.48368614,0.0005308,60]
[331521250,1720446742647,-156.19537253,0.00053111,60]
[331521251,1720446742750,-156.19537253,0.00053147,60]
[331521252,1720446742852,-704.82,0.0005315,120]
[331521253,1720446742957,-1163.26,0.0005315,120]
[331521254,1720446743064,-500.0,0.0005315,120]
[331521255,1720446743165,-966.97,0.0005315,120]
[331521256,1720446743273,-500.0,0.0005315,120]
[331521257,1720446743375,-1435.54,0.0005315,120]
[331521258,1720446743491,-982.43,0.0005315,120]
[331521259,1720446743614,-2601.42,0.0005315,120]
[331521260,1720446743731,-500.0,0.0005315,120]
[331521261,1720446743839,-576.67,0.0005315,120]
[331521262,1720446743949,-656.98,0.0005315,120]
[331521263,1720446744051,-875.42,0.0005315,120]
[331521264,1720446744154,-601.48,0.0005315,120]
[331521265,1720446744264,-927.61,0.0005315,120]
[331521266,1720446744373,-663.11,0.0005315,120]
[331521267,1720446744486,-500.0,0.0005315,120]
[331521268,1720446744596,-995.13,0.0005315,120]
[331521269,1720446744704,-500.0,0.0005315,120]
[331521270,1720446744808,-503.89,0.0005315,120]
[331521271,1720446744913,-2052.66,0.0005315,120]
[331521272,1720446745019,-500.0,0.0005315,120]
[331521273,1720446745123,-500.0,0.0005315,120]
[331521274,1720446745238,-793.83,0.0005315,120]
[331521275,1720446745357,-500.0,0.0005315,120]
[331521276,1720446745470,-680.97,0.0005315,120]
[331521277,1720446745577,-576.64,0.0005315,120]
[331521278,1720446745685,-500.0,0.0005315,120]
[331521279,1720446745800,-500.0,0.0005315,120]
[331521280,1720446745911,-844.3,0.0005315,120]
[331521281,1720446746015,-500.0,0.0005315,120]
[331521282,1720446746118,-626.46,0.0005315,120]
[331521283,1720446746222,-858.72,0.0005315,120]
[331521284,1720446746329,-606.39,0.0005315,120]
[331521285,1720446746433,-500.0,0.0005315,120]
[331521286,1720446746542,-500.0,0.0005315,120]
[331521287,1720446746646,-608.68,0.0005315,120]
[331521288,1720446746754,-586.51,0.0005315,120]
[331521289,1720446746861,-500.0,0.0005315,120]
[331521290,1720446746970,-500.0,0.0005315,120]
[331521291,1720446747077,-500.0,0.0005315,120]
[331521292,1720446747184,-462.77234623,0.0005315,120]
[331521293,1720446747289,-500.0,0.0005315,120]
[331521294,1720446747393,-698.26,0.0005315,120]
[331521295,1720446747495,-580.79,0.0005315,120]
[331521296,1720446747602,-1752.42,0.0005315,120]
[331521297,1720446747708,-500.0,0.0005315,120]
[331521298,1720446747812,-1395.37,0.0005315,120]
[331521299,1720446747918,-789.75,0.0005315,120]
[331521300,1720446748023,-618.35,0.0005315,120]
[331521301,1720446748130,-506.52,0.0005315,120]
[331521302,1720446748237,-768.09,0.0005315,120]
[331521303,1720446748346,-610.82,0.0005315,120]
[331521304,1720446748474,-621.72,0.0005315,120]
[331521305,1720446748600,-1216.49,0.0005315,120]
[331521306,1720446748727,-3725.93,0.0005315,120]
[331521307,1720446748838,-935.49,0.0005315,120]
[331521308,1720446748947,-675.31,0.0005315,120]
[331521309,1720446749064,-2876.66,0.0005315,120]
[331521310,1720446749178,-586.12,0.0005315,120]
[331521311,1720446749335,-1521.41,0.0005315,120]
[331521312,1720446749451,-150.05450298,0.00053245,60]
[331521313,1720446749567,-155.26671164,0.00053256,60]
[331521314,1720446749685,-153.57262803,0.00053399,60]
[331521315,1720446749800,-704.82,0.00053424,120]
[331521316,1720446749914,-1163.26,0.00053424,120]
[331521317,1720446750028,-500.0,0.00053424,120]
[331521318,1720446750138,-966.97,0.00053424,120]
[331521319,1720446750244,-500.0,0.00053424,120]
[331521320,1720446750350,-1435.54,0.00053424,120]
[331521321,1720446750458,-982.43,0.00053424,120]
[331521322,1720446750572,-2601.42,0.00053424,120]
[331521323,1720446750674,-500.0,0.00053424,120]
[331521324,1720446750772,-576.67,0.00053424,120]
[331521325,1720446750879,-656.98,0.00053424,120]
[331521326,1720446750986,-875.42,0.00053424,120]
[331521327,1720446751099,-601.48,0.00053424,120]
[331521328,1720446751199,-927.61,0.00053424,120]
[331521329,1720446751298,-663.11,0.00053424,120]
[331521330,1720446751397,-500.0,0.00053424,120]
[331521331,1720446751498,-995.13,0.00053424,120]
[331521332,1720446751600,-500.0,0.00053424,120]
[331521333,1720446751700,-503.89,0.00053424,120]
[331521334,1720446751799,-2052.66,0.00053424,120]
[331521335,1720446751896,-396.23,0.00053424,120]
[331521336,1720446751992,-500.0,0.00053424,120]
[331521337,1720446752086,-793.83,0.00053424,120]
[331521338,1720446752183,-500.0,0.00053424,120]
[331521339,1720446752276,-680.97,0.00053424,120]
[331521340,1720446752368,-576.64,0.00053424,120]
[331521341,1720446752475,-500.0,0.00053424,120]
[331521342,1720446752577,-500.0,0.00053424,120]
[331521343,1720446752681,-844.3,0.00053424,120]
[331521344,1720446752787,-500.0,0.00053424,120]
[331521345,1720446752893,-626.46,0.00053424,120]
[331521346,1720446752997,-858.72,0.00053424,120]
[331521347,1720446753099,-606.39,0.00053424,120]
[331521348,1720446753206,-500.0,0.00053424,120]
[331521349,1720446753313,-500.0,0.00053424,120]
[331521350,1720446753427,-608.68,0.00053424,120]
[331521351,1720446753545,-586.51,0.00053424,120]
[331521352,1720446753829,-404.95,0.00053424,120]
[331521353,1720446753943,-500.0,0.00053424,120]
[331521354,1720446754052,-500.0,0.00053424,120]
[331521355,1720446754163,-2035.02,0.00053424,120]
[331521356,1720446754279,-500.0,0.00053424,120]
[331521357,1720446754390,-698.26,0.00053424,120]
[331521358,1720446754502,-580.79,0.00053424,120]
[331521359,1720446754613,-1752.42,0.00053424,120]
[331521360,1720446754723,-500.0,0.00053424,120]
[331521361,1720446754825,-1395.37,0.00053424,120]
[331521362,1720446754928,-789.75,0.00053424,120]
[331521363,1720446755033,-618.35,0.00053424,120]
[331521364,1720446755139,-506.52,0.00053424,120]